Workbook

Sheet Feuil1
C2: Loi à simuler : | J2: Comparaison :
B3: Loi = | C3: Normale | I3: Théorique | J3: Empirique | K3: Erreur (%)
B4: Moyenne = | C4: 100 | H4: Moyenne = | I4: =Moyenne -> 100 | J4: =AVERAGE(Mat) -> 100.5267354 | K4: =IF(Moyenne=0,"",(J4-Moyenne)/Moyenne) -> 0.005267354205
B5: Incertitude (k=2) = | C5: 0.8 | H5: Ecart-type = | I5: =IF(Loi="Normale",stdev,(stdev)/SQRT(3)) -> 0.8 | J5: =STDEV(Mat) ->  | K5: =(J5-I5)/I5 -> 
B6: Nb d'itérations = | C6: 1 | D6: (max 1000000)
B7: Nb de résultats = | C7: 10 | D7: (2 à 10)
B8: EMT = | C8: 1
B9: Sélectionner les paramètres de la loi et le nombre de répétitions de la mesure. Choisir le nombre de résultats pour l'historique et l'EMT. Lancer le test.
C13: Résultats expérimentaux :
B14: Min = | C14: =MIN(Mat) -> 100.5267354
B15: Max = | C15: =MAX(Mat) -> 100.5267354
B16: C = | C16: =INT(SQRT(N)) -> 1 | D16: =IF(C16=1,"classe","classes") -> classe
B17: It = | C17: =(Max-Min)/C16 -> 0 | D17: (Largeur d'intervalle)
B18: Moyenne = | C18: =J4 -> 100.5267354
B19: Ecart-type = | C19: =J5 -> 
C26: www.acei-services.com
B30: Tirage | C30: Classes | D30: Fréquences | E30: Loi théorique
B31: =NORMINV(RAND(),Moyenne,stdev/2) -> 100.5267354 | C31: =Min+0*It -> 100.5267354 | D31: =FREQUENCY(B31:B31,C31:C31)/N -> 1 | I31: 1 | J31: =Moyenne-$C$8 -> 99 | K31: =Moyenne+$C$8 -> 101 | L31: 100.0584906
C32: =Min+1*It -> 100.5267354 | D32: 0 | I32: 2 | J32: 99 | K32: 101 | L32: 100.4918532
I33: 3 | J33: 99 | K33: 101 | L33: 100.463491
F34: =Moyenne+(-2)/5*3*stdev -> 99.04 | G34: =NORMDIST(F34,Moyenne,stdev,FALSE)/INT(SQRT(N))*(Max-Min) -> 0 | I34: 4 | J34: 99 | K34: 101 | L34: 100.1888543
F35: =Moyenne+(-1)/5*3*stdev -> 99.52 | G35: 0 | I35: 5 | J35: 99 | K35: 101 | L35: 99.90076274
F36: =Moyenne+(0)/5*3*stdev -> 100 | G36: 0 | I36: 6 | J36: 99 | K36: 101 | L36: 99.9785138
F37: =Moyenne+(1)/5*3*stdev -> 100.48 | G37: 0 | I37: 7 | J37: 99 | K37: 101 | L37: 99.52370367
F38: =Moyenne+(2)/5*3*stdev -> 100.96 | G38: 0 | I38: 8 | J38: 99 | K38: 101 | L38: 100.2110192
F39: =Moyenne+(3)/5*3*stdev -> 101.44 | G39: 0 | I39: 9 | J39: 99 | K39: 101 | L39: 100.060403
F40: =Moyenne+(4)/5*3*stdev -> 101.92 | G40: 0 | I40: 10 | J40: 99 | K40: 101 | L40: 99.42942043
F41: =Moyenne+(5)/5*3*stdev -> 102.4 | G41: 0
